fUSD/lending_fUSD_20241125
["ID","MTS","AMOUNT","RATE_DAILY","PERIOD"]
[343284985,1732541451470,-241.167382,0.00038642,14]
[343284986,1732541451481,-151.0,0.00038642,14]
[343284987,1732541451491,-500.0,0.00038642,21]
[343284988,1732541451500,-285.149124,0.00038642,14]
[343284989,1732541451511,-500.0,0.00038642,21]
[343284990,1732541451520,-500.0,0.00038642,21]
[343284991,1732541451530,-500.0,0.00038642,21]
[343284992,1732541451540,-500.0,0.00038642,21]
[343284993,1732541451549,-500.0,0.00038642,21]
[343284994,1732541451558,-500.0,0.00038642,21]
[343284995,1732541451568,-500.0,0.00038642,21]
[343284996,1732541451577,-675.37,0.00038642,21]
[343284997,1732541451587,-500.0,0.00038642,21]
[343284998,1732541451597,-500.0,0.00038642,21]
[343284999,1732541451606,-500.0,0.00038642,21]
[343285000,1732541451616,-637.51077545,0.00038642,21]
[343285001,1732541451628,-142.42922455,0.00038642,21]
[343285002,1732541451637,-170.89241425,0.00038642,21]
[343285003,1732541451982,-500.0,0.00038368,21]
[343285004,1732541451992,-151.0,0.00038368,14]
[343285005,1732541452001,-151.0,0.00038568,14]
[343285006,1732541452011,-239.56464733,0.00038568,21]
[343285007,1732541452146,-79.59897939,0.00038568,21]
[343285008,1732541452158,-180.83637328,0.00038568,21]
[343285009,1732541452170,-329.10758575,0.00038642,21]
[343285010,1732541452180,-500.0,0.00038642,21]
[343285011,1732541452190,-403.55703137,0.00038642,21]
[343285012,1732541452207,-96.44296863,0.00038642,21]
[343285013,1732541452217,-500.0,0.00038642,21]
[343285014,1732541452227,-1840.33,0.00038642,21]
[343285015,1732541452237,-500.0,0.00038642,21]
[343285016,1732541452246,-904.03,0.00038642,21]
[343285017,1732541452255,-500.0,0.00038642,21]
[343285018,1732541452265,-500.0,0.00038642,21]
[343285019,1732541452275,-627.74,0.00038642,21]
[343285020,1732541452284,-818.13,0.00038642,21]
[343285021,1732541452294,-374.04,0.00038642,21]
[343285022,1732541452303,-736.11387568,0.00038642,21]
[343285023,1732541452315,-356.52612432,0.00038642,21]
[343285024,1732541452324,-200.0,0.0003867,2]
[343285025,1732541452334,-5009.9566824,0.00038689,2]
[343285026,1732541452346,-519.28869328,0.00038689,2]
[343285027,1732541452358,-1291.04858402,0.00038689,2]
[343285028,1732541452367,-151.0,0.00038689,14]
[343285029,1732541452376,-151.0,0.00038689,14]
[343285030,1732541452386,-151.0,0.00038689,14]
[343285031,1732541452396,-3123.80141598,0.00038715,2]
[343285032,1732541452408,-58.56172092,0.00038715,2]
[343285033,1732541452419,-500.0,0.00038741,21]
[343285034,1732541452429,-500.0,0.00038742,21]
[343285035,1732541452439,-209.06,0.00038742,21]
[343285036,1732541452449,-354.16,0.00038742,21]
[343285037,1732541452458,-318.56,0.00038742,21]
[343285038,1732541452468,-500.0,0.00038742,21]
[343285039,1732541452477,-500.0,0.00038742,21]
[343285040,1732541452486,-500.0,0.00038742,21]
[343285041,1732541452496,-500.0,0.00038742,21]
[343285042,1732541452506,-500.0,0.00038742,21]
[343285043,1732541452515,-500.0,0.00038742,21]
[343285044,1732541452524,-500.0,0.00038742,21]
[343285045,1732541452534,-500.0,0.00038742,21]
[343285046,1732541452543,-500.0,0.00038742,21]
[343285047,1732541452597,-500.0,0.00038742,21]
[343285048,1732541452606,-500.0,0.00038742,21]
[343285049,1732541452616,-500.0,0.00038742,21]
[343285050,1732541452625,-584.98,0.00038742,21]
[343285051,1732541452634,-500.0,0.00038742,21]
[343285052,1732541452644,-500.0,0.00038742,21]
[343285053,1732541452653,-500.0,0.00038742,21]
[343285054,1732541452662,-500.0,0.00038742,21]
[343285055,1732541452675,-565.86,0.00038742,21]
[343285056,1732541452684,-500.0,0.00038742,21]
[343285057,1732541452693,-604.14,0.00038742,21]
[343285058,1732541452703,-500.0,0.00038742,120]
[343285059,1732541452712,-500.0,0.00038742,21]
[343285060,1732541452722,-500.0,0.00038842,21]
[343285061,1732541452731,-500.0,0.00038842,21]
[343285062,1732541452740,-500.0,0.00038842,21]
[343285063,1732541452749,-500.0,0.00038842,21]
[343285064,1732541452758,-500.0,0.00038842,21]
[343285065,1732541452768,-500.0,0.00038842,21]
[343285066,1732541452777,-500.0,0.00038842,21]
[343285067,1732541452787,-500.0,0.00038842,21]
[343285068,1732541452796,-183.79,0.00038842,21]
[343285069,1732541452805,-500.0,0.00038842,21]
[343285070,1732541452814,-500.0,0.00038842,21]
[343285071,1732541452823,-500.0,0.00038842,21]
[343285072,1732541452833,-337.08,0.00038842,21]
[343285073,1732541452842,-500.0,0.00038842,21]
[343285074,1732541452851,-444.55,0.00038842,21]
[343285075,1732541452860,-500.0,0.00038842,21]
[343285076,1732541452870,-500.0,0.00038842,21]
[343285077,1732541452879,-500.0,0.00038842,21]
[343285078,1732541452889,-411.36,0.00038842,21]
[343285079,1732541452898,-714.28571432,0.00038842,2]
[343285080,1732541452907,-500.0,0.00038842,21]
[343285081,1732541452916,-158.42,0.00038842,21]
[343285082,1732541452926,-500.0,0.00038842,21]
[343285083,1732541452935,-500.0,0.00038842,21]
[343285084,1732541452944,-500.0,0.00038842,21]
[343285085,1732541452954,-500.0,0.00038842,21]
[343285086,1732541452963,-500.0,0.00038842,21]
[343285087,1732541452972,-500.0,0.00038842,21]
[343285088,1732541452981,-500.0,0.00038842,21]
[343285089,1732541452990,-457.45055202,0.00038842,21]
[343285090,1732541452999,-500.0,0.00038842,21]
[343285091,1732541453008,-237.20279138,0.00038842,21]
[343285092,1732541453017,-500.0,0.00038842,21]
[343285093,1732541453026,-500.0,0.00038842,21]
[343285094,1732541453035,-500.0,0.00038842,21]
[343285095,1732541453044,-500.0,0.00038842,21]
[343285096,1732541453053,-500.0,0.00038842,21]
[343285097,1732541453062,-500.0,0.00038842,21]
[343285098,1732541453072,-500.0,0.00038842,21]
[343285099,1732541453082,-500.0,0.00038842,21]
[343285100,1732541453091,-49.1168141,0.00038842,21]
[343285101,1732541453103,-450.8831859,0.00038842,21]
[343285102,1732541453111,-62.2168141,0.00038842,21]
[343285103,1732541524752,800.0,0.00026986,120]
[343285106,1732541645705,800.0,0.00026986,120]
[343285110,1732541819411,-157.68,0.00030685,2]
[343285111,1732541819434,-286.32,0.00032384,2]
[343285112,1732541829285,-114.91483789,0.00032384,2]
[343285113,1732541829310,-209.7015,0.00032484,2]
[343285114,1732541829334,-45.38366211,0.00034985,2]
[343285115,1732541865886,-2178.52484242,0.00036053,120]
[343285116,1732541865909,-150.0,0.00037,120]
[343285117,1732541865932,-212.92,0.00037301,2]
[343285118,1732541865955,-500.0,0.0003731,2]
[343285119,1732541865979,-166.47,0.00037685,2]
[343285120,1732541866002,-500.0,0.00037934,2]
[343285121,1732541866028,-529.54,0.00037943,2]
[343285122,1732541866051,-2132.54515758,0.00037943,2]
[343285149,1732542631903,-155.54,0.00030685,2]
[343285150,1732542631913,-205.78328695,0.00030685,2]
[343285151,1732542631924,-150.0,0.00034548,10]
[343285152,1732542631935,-1228.18594812,0.00035395,2]
[343285153,1732542631945,-789.12,0.00035485,10]
[343285154,1732542631955,-2347.72076493,0.00035495,5]
[343285155,1732542632066,-3408.0,0.00035495,5]
[343285582,1732542637039,-2271.92430489,0.00035495,5]
[343285583,1732542637050,-111693.01880638,0.00035495,5]
[343285584,1732542637061,-505.6,0.00035495,5]
[343285585,1732542637071,-4885.5075555,0.00035495,5]
[343285589,1732542637846,-3918.38029884,0.00035495,5]
[343285590,1732542637867,-1615.47364383,0.00035495,5]
[343285621,1732542639872,-440.36,0.00035495,5]
[343285622,1732542639956,-9229.06269999,0.00035495,5]
[343285623,1732542640130,-4826.166951,0.00035495,5]
[343285634,1732542642916,-6368.06360787,0.00035495,5]
[343285635,1732542642928,-759.62740193,0.00035495,5]
[343285636,1732542642937,-381.39,0.00035495,10]
[343285637,1732542642947,-769.54986594,0.00035495,2]
[343285638,1732542642957,-533.03013406,0.00035495,2]
[343285639,1732542642966,-579.43,0.00035495,2]
[343285640,1732542642975,-150.99,0.00035495,2]
[343285641,1732542642984,-1714.90449929,0.00035495,2]
[343285642,1732542642995,-1357.68550071,0.00035495,2]
[343285643,1732542643003,-1000.0,0.00036113,2]
[343285644,1732542643013,-170.33,0.00036318,2]
[343285645,1732542643023,-231.08,0.00036341,120]
[343285646,1732542643032,-164.07360607,0.00036436,2]
[343285647,1732542643043,-335.92639393,0.00036436,2]
[343285648,1732542643052,-150.0,0.00036669,2]
[343285649,1732542643061,-543.57360507,0.00036843,2]
[343285650,1732542643072,-1204.4015774,0.00036843,2]
[343285651,1732542643083,-7850.01870283,0.00036843,2]
[343285652,1732542643093,-5998.33366957,0.00036843,2]
[343285653,1732542643105,-2603.25002587,0.00036843,2]
[343285654,1732542643161,-3325.056,0.00036843,2]
[343285656,1732542643276,-2375.36641926,0.00036843,2]
[343285658,1732542643286,-500.0,0.000369,2]
[343285660,1732542643296,-1228.18594812,0.00036969,2]
[343285662,1732542643305,-828.0,0.00037,30]
[343285664,1732542643314,-3504.49,0.00037185,2]
[343285665,1732542643323,-200.0,0.00037283,2]
[343285667,1732542643332,-500.21,0.00037342,2]
[343285669,1732542643342,-150.0,0.00037342,2]
[343285671,1732542643351,-250.0,0.00037352,2]
[343285673,1732542643360,-250.0,0.0003737,120]
[343285675,1732542643368,-1000.0,0.00037448,2]
[343285677,1732542643378,-153.83,0.0003747,120]
[343285679,1732542643387,-250.0,0.00037476,2]
[343285681,1732542643396,-480.95,0.00037496,2]
[343285683,1732542643415,-159.57,0.00037516,2]
[343285685,1732542643424,-165.5,0.00037535,120]
[343285688,1732542643433,-150.43374611,0.00037753,2]
[343285690,1732542643443,-579.43,0.00037759,2]
[343285692,1732542643452,-170.33,0.00038134,2]
[343285694,1732542643461,-1000.0,0.00038136,2]
[343285696,1732542643470,-2500.0,0.00038136,2]
[343285698,1732542643480,-169.34914574,0.00038146,2]
[343285700,1732542643489,-8211.60554882,0.00038236,2]
[343285702,1732542643502,-1200.49919194,0.00038236,2]
[343285721,1732542645788,-3102.07542929,0.00038236,2]
[343285722,1732542646072,-6971.8,0.00038236,2]
[343285723,1732542646113,-6385.02724612,0.00038236,2]
[343285733,1732543143426,800.0,0.00026986,120]
[343285735,1732543214625,151.0,0.0003,120]
[343285736,1732543241917,151.0,0.0003,120]
[343285741,1732543502823,1284.0,0.000174,2]
[343285742,1732543503494,1155.0,0.000174,2]
[343287155,1732543832229,-757.08601363,0.0002644,2]
[343287156,1732543832239,-279.918,0.00027949,2]
[343287157,1732543832249,-998.80749292,0.0003,7]
[343287159,1732543832258,-150.0,0.0003068,2]
[343287160,1732543832268,-156.13,0.00030685,2]
[343287162,1732543832278,-250.0,0.00031,2]
[343287163,1732543832290,-9999.99,0.00031,2]
[343287164,1732543832299,-6550.64,0.00031,2]
[343287166,1732543832308,-999.99,0.00031,2]
[343287167,1732543832318,-5922.38,0.00031284,2]
[343287168,1732543832327,-960.94983806,0.00031284,2]
[343287170,1732543832346,-256.79016194,0.00031284,2]
[343287171,1732543832357,-150.99,0.00031284,2]
[343287173,1732543832367,-215.5665,0.00031767,2]
[343287174,1732543832377,-844.24,0.00032059,2]
[343287176,1732543832386,-300.0,0.00033,2]
[343287177,1732543832396,-2351.13,0.00033511,2]
[343287178,1732543832405,-151.0,0.00033753,120]
[343287180,1732543832415,-456.19,0.00033783,2]
[343287181,1732543832425,-22943.44132783,0.00033859,2]
[343287183,1732543832437,-508.03668,0.00033859,2]
[343287184,1732543832449,-448.52199217,0.00033859,2]
[343287186,1732543832459,-1046.16800783,0.00033859,2]
[343287188,1732543832486,-2049.10199217,0.00033859,2]
[343287189,1732543832496,-2104.19,0.00033883,2]
[343287190,1732543832506,-700.0,0.000341,30]
[343287192,1732543832516,-3037.65,0.00034207,2]
[343287193,1732543832526,-844.24,0.00034323,2]
[343287195,1732543832535,-1047.7,0.00034535,2]
[343287196,1732543832544,-172.83,0.00034538,2]
[343287197,1732543832555,-2006.18,0.00034568,2]
[343287199,1732543832564,-250.0,0.00034598,2]
[343287200,1732543832575,-240.3,0.00034906,2]
[343287201,1732543832585,-500.0,0.0003496,2]
[343287203,1732543832594,-350.0,0.00035,2]
[343287204,1732543832606,-700.0,0.00035,30]
[343287206,1732543832615,-3208.6,0.00035046,2]
[343287207,1732543832624,-519.44,0.00035114,2]
[343287208,1732543832634,-250.0,0.00035125,2]
[343287210,1732543832644,-704.03,0.00035154,120]
[343287211,1732543832654,-644.27911247,0.00035159,2]
[343287213,1732543832666,-962.10088753,0.00035159,2]
[343287214,1732543832676,-500.0,0.0003525,2]
[343287215,1732543832685,-500.0,0.00035357,2]
[343287217,1732543832695,-200.0,0.00035432,2]
[343287218,1732543832704,-1000.0,0.00035483,2]
[343287219,1732543832714,-200.0,0.00035483,2]
[343287221,1732543832724,-6942.051,0.00035483,2]
[343287222,1732543832734,-720.12,0.00035505,2]
[343287224,1732543832744,-251.29144381,0.000356,2]
[343287225,1732543832754,-3291.08,0.00035712,2]
[343287226,1732543832764,-58.47189066,0.00035771,2]
[343287429,1732543838167,-651.19387949,0.0003058,2]
[343287430,1732543838176,-491.59810934,0.00035771,2]
[343287431,1732543838186,-500.0,0.00035798,2]
[343287433,1732543838195,-174.22,0.0003598,2]
[343287434,1732543838204,-1000.0,0.00035989,2]
[343287435,1732543838213,-10704.15238887,0.0003599,2]
[343287437,1732543838225,-2694.81253942,0.0003599,2]
[343287443,1732543838367,-480.2576488,0.0003599,2]
[343287512,1732543839971,-767.06663402,0.0003599,2]
[343287514,1732543839983,-2889.64495869,0.0003599,2]
[343287522,1732543840164,-920.15455851,0.0003599,2]
[343287525,1732543840235,-1438.23049,0.0003599,2]
[343287527,1732543840246,-1484.49077815,0.0003599,2]
[343287528,1732543840258,-1656.9025068,0.0003599,2]
[343287530,1732543840275,-478.07757,0.0003599,2]
[343287636,1732543843076,-13974.38705611,0.0003599,2]
[343287640,1732543843180,-2972.38269766,0.0003599,2]
[343287642,1732543843192,-23897.6775,0.0003599,2]
[343287643,1732543843203,-6831.3537265,0.0003599,2]
[343287653,1732543843440,-3731.30966141,0.0003599,2]
[343287655,1732543843451,-7261.25692107,0.0003599,2]
[343287656,1732543843463,-1958.81921058,0.0003599,2]
[343287658,1732543843475,-1681.03454362,0.0003599,2]
[343287659,1732543843484,-2205.37662806,0.00036,2]
[343287660,1732543843495,-4076.48489824,0.00036,2]
[343287662,1732543843506,-6116.41221965,0.00036,2]
[343287663,1732543843518,-12601.72625405,0.00036,2]
[343287664,1732543843527,-1000.0,0.00036055,2]
[343287666,1732543843536,-1580.04,0.00036056,2]
[343287667,1732543843546,-154.33,0.00036316,120]
[343287669,1732543843556,-250.0,0.00036427,120]
[343287670,1732543843566,-844.24,0.00036587,2]
[343287671,1732543843576,-714.63,0.00036845,2]
[343287672,1732543843586,-519.44,0.00036869,2]
[343287673,1732543843597,-156.13,0.00036938,2]
[343287674,1732543843607,-1000.0,0.00036989,2]
[343287675,1732543843616,-400.0,0.00037,2]
[343287676,1732543843627,-23057.96374656,0.00037,2]
[343287778,1732543846292,-1942.03625344,0.00037,2]
[343287779,1732543846302,-321.11873528,0.00037,2]
[343287781,1732543846311,-151.0,0.00037507,120]
[343287782,1732543846320,-151.0,0.00037507,120]
[343287783,1732543846329,-159.01,0.00037762,2]
[343287785,1732543846338,-798.34095049,0.00037998,7]
[343287786,1732543846350,-1610.61038813,0.00037998,7]
[343287788,1732543846364,-292.581,0.00037998,7]
[343288885,1732543976494,1935.81,0.00033,30]
[343289191,1732544305562,-496197.87099362,0.00035,120]
[343289222,1732544439493,150.0,0.00027,120]
[343289223,1732544440456,199.66489,0.000323,120]
[343289259,1732544602888,500.0,0.000323,120]
[343289262,1732544617418,500.0,0.000323,120]
[343289268,1732544624374,200.0,0.000323,120]
[343289269,1732544708479,997561.0,0.00013,2]
[343289270,1732544708505,2120000.0,0.00013,2]
[343289271,1732544708532,18000000.0,0.00013,2]
[343289272,1732544708556,2120000.0,0.00013,2]
[343289273,1732544708585,2362081.46200287,0.00013,2]
[343289274,1732544710775,-153.16,0.00030685,2]
[343289275,1732544710801,-157.68,0.00030685,2]
[343289276,1732544710826,-250.0,0.00031,2]
[343289277,1732544710851,-181.497,0.00031767,2]
[343289278,1732544710877,-2000.0,0.00032877,15]
[343289279,1732544710902,-300.0,0.00033,2]
[343289280,1732544710929,-267.01970674,0.000343,38]
[343289283,1732544754676,12804.0,0.00015,10]
[343289287,1732544881551,411.37077218,0.00015,10]
[343289289,1732544896736,151.0,0.0003,120]
[343289587,1732545042576,-30446.4329608,0.0002,5]
[343289588,1732545042586,-159.23756615,0.0002185,2]
[343289589,1732545042596,-159.23117549,0.0002185,2]
[343289590,1732545042606,-159.25433002,0.0002185,2]
[343289591,1732545042616,-432.90379701,0.0002185,2]
[343289592,1732545042624,-159.42,0.000236,2]
[343289593,1732545042633,-18286.98042916,0.0002361,7]
[343289594,1732545042649,-1372.72920284,0.0002361,7]
[343289595,1732545042658,-150.0,0.00023978,2]
[343289596,1732545042668,-631.1515153,0.000325,2]
[343289597,1732545042677,-1474.13729326,0.000343,38]
[343289598,1732545042685,-173.38276711,0.000343,38]
[343289599,1732545042695,-200.0,0.00034674,2]
[343289600,1732545042704,-1977.8,0.00034749,2]
[343289601,1732545042713,-1300.0,0.000349,12]
[343289602,1732545042722,-156.49487912,0.000349,2]
[343289603,1732545042731,-323.5630189,0.000349,2]
[343289604,1732545042917,-159.42,0.00034909,2]
[343289605,1732545042927,-928.58,0.00034919,2]
[343289606,1732545042936,-159.42,0.0003498,2]
[343289607,1732545042945,-1000.0,0.00034989,2]
[343289609,1732545042954,-2000.0,0.0003499,120]
[343289610,1732545042963,-167.87,0.0003499,3]
[343289612,1732545042972,-1357.68,0.0003499,2]
[343289614,1732545042981,-221.01,0.0003499,2]
[343289616,1732545042990,-9092.39,0.0003499,2]
[343289617,1732545042999,-159.42,0.0003499,2]
[343289618,1732545043008,-159.42,0.0003499,2]
[343289619,1732545043017,-159.42,0.0003499,2]
[343289620,1732545043028,-159.42,0.0003499,2]
[343289621,1732545043038,-159.42,0.0003499,2]
[343289622,1732545043047,-159.42,0.0003499,2]
[343289623,1732545043057,-159.42,0.0003499,2]
[343289624,1732545043066,-159.42,0.0003499,2]
[343289625,1732545043075,-159.42,0.0003499,2]
[343289626,1732545043084,-159.42,0.0003499,2]
[343289627,1732545043093,-159.42,0.0003499,2]
[343289630,1732545043103,-159.42,0.0003499,2]
[343289631,1732545043112,-159.42,0.0003499,2]
[343289632,1732545043120,-159.42,0.0003499,2]
[343289633,1732545043129,-159.42,0.0003499,2]
[343289634,1732545043138,-159.42,0.0003499,2]
[343289635,1732545043147,-159.42,0.0003499,2]
[343289636,1732545043157,-500.0,0.00034999,7]
[343289637,1732545043167,-500.0,0.00034999,7]
[343289638,1732545043176,-433.62649426,0.00034999,7]
[343289639,1732545043184,-403556.77051092,0.00035,120]
[343289640,1732545043196,-501.06,0.00035,120]
[343289641,1732545043224,-27489.77416705,0.00035,120]
[343289642,1732545043234,-15140.87624827,0.00035,120]
[343289643,1732545043245,-7507.23305,0.00035,120]
[343289644,1732545043257,-18065.93230995,0.00035,120]
[343289645,1732545043269,-928.04112244,0.00035,120]
[343289646,1732545043287,-5873.94308102,0.00035,120]
[343289647,1732545043352,-12279.14880871,0.00035,120]
[343289648,1732545043363,-11860.29999998,0.00035,120]
[343289651,1732545043674,-156.06,0.0003499,10]
[343289652,1732545043684,-36154.0188002,0.00035,120]
[343289653,1732545043695,-17393.83715,0.00035,120]
[343289654,1732545043715,-3459.0445827,0.00035,120]
[343289655,1732545043830,-2160.57600402,0.000349,2]
[343289656,1732545043839,-102941.38304775,0.00035,120]
[343289657,1732545043851,-176273.3105,0.00035,120]
[343289658,1732545043896,-488.0,0.00035,120]
[343289659,1732545043907,-3510.63871055,0.00035,120]
[343289670,1732545044117,-6995.89539263,0.00035,120]
[343289672,1732545044129,-970.18698077,0.00035,120]
[343289674,1732545044142,-3018.30834746,0.00035,120]
[343289676,1732545044152,-350.0,0.00035,2]
[343289678,1732545044162,-949.61745203,0.00035,2]
[343289681,1732545044174,-5637.77451984,0.00035,2]
[343289684,1732545044186,-955.03078777,0.00035,2]
[343289687,1732545044196,-518.56,0.00035,10]
[343289689,1732545044206,-264.15,0.00035408,120]
[343289693,1732545044215,-1000.0,0.00035616,2]
[343289695,1732545044225,-1500.0,0.00035616,120]
[343289698,1732545044234,-250.0,0.0003571,120]
[343289701,1732545044244,-154.13,0.00035745,120]
[343289703,1732545044255,-500.0,0.00035874,2]
[343289705,1732545044264,-2000.0,0.00035981,2]
[343289707,1732545044280,-700.0,0.00036,30]
[343289709,1732545044290,-250.0,0.00036033,2]
[343289711,1732545044300,-345.73,0.0003604,2]
[343289713,1732545044310,-1381.04,0.0003619,2]
[343289715,1732545044319,-15006.08586551,0.00036266,2]
[343289718,1732545044338,-492.31000016,0.00036266,2]
[343289721,1732545044349,-8401.60413433,0.00036266,2]
[343289723,1732545044359,-1656.62851611,0.000363,120]
[343289725,1732545044368,-357.29547797,0.00036328,2]
[343289726,1732545044378,-323.56301886,0.00036377,2]
[343289728,1732545044388,-357.29547797,0.00036468,2]
[343289730,1732545044397,-6472.11337467,0.00036644,3]
[343289733,1732545044409,-400.46671131,0.00036644,3]
[343289734,1732545044422,-357.29547797,0.0003676,2]
[343289736,1732545044431,-891.66013096,0.00036872,2]
[343289739,1732545044443,-285.06986904,0.00036872,2]
[343289741,1732545044453,-156.49487912,0.00036886,2]
[343289743,1732545044463,-888.48525184,0.00036967,2]
[343289910,1732545046256,-2160.57600399,0.00036541,2]
[343289914,1732545046267,-1068.83446823,0.00036967,2]
[343289916,1732545046279,-400.0,0.00037,2]
[343289921,1732545046290,-2204.8,0.00037067,2]
[343289923,1732545046300,-29999.99,0.00037067,30]
[343289925,1732545046309,-357.29547797,0.00037148,2]
[343289927,1732545046319,-928.58,0.00037183,2]
[343289929,1732545046328,-245.38790853,0.000372,103]
[343289931,1732545046338,-357.29547797,0.00037372,2]
[343289933,1732545046347,-20000.0,0.000375,4]
[343289934,1732545046357,-24841.12792808,0.0003762,2]
[343289937,1732545046366,-44436.11273523,0.0003762,2]
[343289940,1732545046394,-2649.59496596,0.0003762,2]
[343289960,1732545046588,-8264.2646626,0.0003762,2]
[343289963,1732545046600,-5251.41162677,0.0003762,2]
[343289965,1732545046609,-528.17,0.0003764,30]
[343289967,1732545046619,-2623.39733,0.00037762,2]
[343289969,1732545046628,-640.33881682,0.00037836,2]
[343289971,1732545046637,-345.73,0.00037842,2]
[343289972,1732545046648,-323.56301886,0.00037854,2]
[343289974,1732545046657,-182.65567672,0.00037856,11]
[343289977,1732545046666,-2700.0,0.000379,13]
[343289979,1732545046676,-8793.5674,0.00037936,2]
[343289981,1732545046686,-60873.8337,0.00037956,2]
[343289983,1732545046695,-16448.63423441,0.00037956,2]
[343289985,1732545046706,-19450.35338287,0.00037956,2]
[343289994,1732545046786,-3940.03757309,0.00037956,2]
[343289999,1732545046827,-300.0,0.00037956,2]
[343290001,1732545046838,-291.78830312,0.00037956,2]
[343290011,1732545102071,-159.23117549,0.0002185,2]
[343290012,1732545102095,-150.0,0.00023986,2]
[343290013,1732545138863,151.0,0.0003,120]
[343290022,1732545351286,150.0,0.00033,120]
[343290024,1732545381349,150.0,0.00033,30]
[343290033,1732545415456,715.96149575,0.00033,50]
[343290038,1732545616103,151.0,0.0003,120]
[343290039,1732545639600,150.0,0.00027,120]
[343290053,1732546055620,153.0,0.00033,30]
[343290054,1732546118203,150.0,0.00033,120]
[343290060,1732546214950,1333.0,0.000157,2]
[343290077,1732546232372,-165.31,0.00028536,2]
[343290078,1732546232382,-185.17,0.00028718,2]
[343290079,1732546232392,-158.9,0.00030685,2]
[343290080,1732546232401,-161.6745,0.00031767,2]
[343290082,1732546232411,-286.4125,0.00031999,2]
[343290083,1732546232421,-259.3985,0.00032,2]
[343290084,1732546232430,-162.4425,0.00032484,2]
[343290085,1732546232440,-150.0,0.00033,2]
[343290086,1732546232449,-151.0,0.00033014,120]
[343290087,1732546232458,-1297.51266419,0.00033898,2]
[343290088,1732546232469,-667.36713991,0.00033998,2]
[343290089,1732546232488,-296.83286009,0.00033998,2]
[343290090,1732546232499,-200.95214991,0.00034112,2]
[343290091,1732546232510,-1064.06447744,0.00034112,2]
[343290092,1732546232522,-32.49603684,0.00034112,2]
[343290093,1732546232532,-448.81896316,0.00034448,2]
[343290094,1732546232547,-344.71103684,0.00034448,2]
[343290095,1732546232557,-608.62,0.00034448,2]
[343290096,1732546232566,-150.0,0.00034548,10]
[343290097,1732546232576,-24630.57,0.00034907,2]
[343290098,1732546232585,-400.0,0.00034924,2]
[343290099,1732546232594,-23900.0,0.00034925,2]
[343290100,1732546232603,-500.0,0.00034927,2]
[343290101,1732546232613,-783.44,0.00034928,2]
[343290102,1732546232623,-1207.38,0.0003499,2]
[343290103,1732546232632,-112616.64739243,0.00035,120]
[343290104,1732546232644,-4806.25,0.00035,120]
[343290105,1732546232689,-82608.13182352,0.00035,120]
[343290106,1732546232700,-93298.40207644,0.00035,120]
[343290107,1732546232711,-135540.3646214,0.00035,120]
[343290108,1732546232721,-1000.0,0.00035014,2]
[343290109,1732546232731,-168.74,0.00035036,120]
[343290110,1732546232740,-250.0,0.00035065,120]
[343290111,1732546232750,-469.36,0.00035104,2]
[343290112,1732546232760,-154.02,0.00035323,120]
[343290113,1732546232770,-468.54,0.00035419,2]
[343290114,1732546232780,-468.54,0.00035429,2]
[343290115,1732546232795,-468.54,0.00035438,2]
[343290116,1732546232805,-468.54,0.00035447,2]
[343290117,1732546232816,-468.54,0.00035457,2]